[Event "FIDE WSTC Open 50 2025"]
[Site "Prague"]
[Date "2025.02.24"]
[Round "7.9"]
[White "Polak, Tomas"]
[Black "Kazhgaleyev, Murtas"]
[Result "1/2-1/2"]
[Annotator "TA"]
[ECO "B32"]
[WhiteElo "2463"]
[BlackElo "2495"]
[PlyCount "49"]
[EventDate "2025.02.17"]
[EventType "team-tourn"]
[EventCountry "CZE"]
[SourceTitle "playchess.com"]
[Source "ChessBase"]
[SourceQuality "1"]
[TimeControl "40/5400+30:1800+30"]

{[%evp 12,49,31,28,36,43,46,47,45,37,43,51,36,0,20,4,14,0,33,27,27,23,24,0,0,0,0,0,0,0,0,0,0,0,2,0,0,0,0,0]} 1. e4 {[%emt 0:00:06]} c5 {[%emt 0:00:47]} 2. Nf3 {[%emt 0:00:11]} Nc6 {[%emt 0:00:05]} 3. d4 {[%emt 0:00:21]} cxd4 {[%emt 0:00:04]} 4. Nxd4 {[%emt 0:00:05]} Qb6 {[%emt 0:00:04]} 5. Nb3 {[%emt 0:00:25]} e6 {[%emt 0:00:06]} 6. Bd3 {[%emt 0:04:35]} Nf6 {[%emt 0:00:45]} 7. O-O {[%emt 0:00:55]} d5 {[%emt 0:05:32] B32: Sicilian: Löwenthal and Kalashnikov Variations.} 8. exd5 {[%emt 0:03:12]} Nxd5 {[%emt 0:00:11]} 9. c4 {[%emt 0:01:30]} Nf6 {[%emt 0:00:49] White is slightly better.} 10. Nc3 {[%emt 0:01:16]} Be7 {[%emt 0:00:47]} 11. Bf4 {[%emt 0:16:16]} O-O {[%emt 0:12:08]} 12. c5 $146 {[%emt 0:05:01]} (12. Qe2 Nd4 13. Nxd4 Qxd4 14. Be5 Qc5 15. Rad1 Rd8 16. Bxf6 gxf6 17. Bxh7+ Kf8 18. Ne4 Qe5 19. Qg4 {1-0 Riff,J (2506)-Schlosser,P (2539) FRA-chT Top 12 2016 (5.7)}) 12... Qd8 {[%emt 0:02:39]} 13. Bc4 {[%emt 0:02:47]} e5 {[%emt 0:06:48]} 14. Bg3 {[%emt 0:05:10]} Bf5 {[%emt 0:11:59]} 15. Qe2 {[%emt 0:07:52]} Re8 {[%emt 0:06:05]} 16. Rad1 {[%emt 0:04:44]} ({Reject} 16. Bxe5 Bxc5 17. Bxf6 Qxf6 $17) 16... Qc8 {[%emt 0:01:03]} 17. Nb5 {[%emt 0:10:04][%cal Oh2h3]} (17. Bxe5 $2 {perishes.} Bf8 18. f4 Bg4 $19) 17... a6 {[%emt 0:01:03] The position is equal.} 18. Nd6 {[%emt 0:02:04]} Bxd6 {[%emt 0:02:32]} 19. Rxd6 {[%emt 0:02:37]} Ne4 {[%emt 0:01:16] A dynamic duo of knights.} 20. Rd5 {[%emt 0:03:33]} Nxg3 {[%emt 0:05:14]} 21. hxg3 {[%emt 0:00:44]} Bg4 {[%emt 0:12:21]} 22. Qe4 {[%emt 0:02:52]} Bf5 {[%emt 0:00:57]} 23. Qe2 {[%emt 0:00:55]} Bg4 {[%emt 0:00:08]} 24. Qe4 {[%emt 0:00:10]} Bf5 {[%emt 0:00:06]} 25. Qe2 {Weighted Error Value: White=0.06 (flawless) /Black=0.04 (flawless)   Inaccurate:     	White=1     	Black=1      OK:         	White=9     	Black=11     Best:        	---       	Black=1} 1/2-1/2

[Event "FIDE WSTC Open 50 2025"]
[Site "Prague"]
[Date "2025.02.24"]
[Round "7.10"]
[White "Kotsur, Pavel"]
[Black "Obsivac, Josef"]
[Result "1-0"]
[Annotator "TA"]
[ECO "B47"]
[WhiteElo "2478"]
[BlackElo "2262"]
[PlyCount "65"]
[EventDate "2025.02.17"]
[EventType "team-tourn"]
[EventCountry "CZE"]
[SourceTitle "playchess.com"]
[Source "ChessBase"]
[SourceQuality "1"]
[TimeControl "40/5400+30:1800+30"]

{[%evp 26,65,26,8,18,10,24,10,12,36,98,96,110,104,112,113,112,120,164,191,202,208,175,178,251,147,155,21,25,22,30,31,224,224,526,536,521,537,883,883,842,838]} 1. e4 {[%emt 0:00:03]} c5 {[%emt 0:00:08]} 2. Nf3 {[%emt 0:00:12]} Nc6 {[%emt 0:00:13]} 3. Nc3 {[%emt 0:00:47]} e6 {[%emt 0:00:25]} 4. d4 {[%emt 0:00:17]} cxd4 {[%emt 0:00:06]} 5. Nxd4 {[%emt 0:00:03]} Qc7 {[%emt 0:00:41]} 6. Be2 {[%emt 0:03:27]} a6 {[%emt 0:00:59]} 7. O-O {[%emt 0:01:16]} Nf6 {[%emt 0:00:48]} 8. Be3 {[%emt 0:00:31]} Be7 {[%emt 0:02:52]} 9. f4 {[%emt 0:00:42]} d6 {[%emt 0:00:20]} 10. Qe1 {[%emt 0:03:41]} Nxd4 {[%emt 0:03:36]} 11. Bxd4 {[%emt 0:01:29]} O-O {[%emt 0:01:48]} 12. Qg3 {[%emt 0:00:13]} b5 {[%emt 0:02:57]} 13. a3 {[%emt 0:02:38]} Bb7 {[%emt 0:01:21]} 14. Rae1 {[%emt 0:00:36] A sharp opening} Rad8 {[%emt 0:03:34] B85: Sicilian Scheveningen: 6 Be2 a6, lines with early Be3.} 15. Kh1 {[%emt 0:02:11]} Rd7 {[%emt 0:18:40]} 16. Bd3 {[%emt 0:05:58]} Qd8 {[%emt 0:03:06] The position is equal.} 17. Qh3 {[%emt 0:01:44]} g6 {[%emt 0:00:53]} (17... Re8 $14) 18. f5 $16 {[%emt 0:01:44] White has more active pieces.} e5 {[%emt 0:02:57] [#]} 19. Be3 {[%emt 0:00:40]} Nh5 {[%emt 0:15:51]} 20. Bh6 {[%emt 0:16:54]} Re8 {[%emt 0:02:18][%cal Oh5f4]} 21. a4 {[%emt 0:03:51]} Bc6 $146 {[%emt 0:07:33]} ({Predecessor:} 21... Bf8 22. Bxf8 Rxf8 23. axb5 axb5 24. f6 d5 25. Be2 Nf4 26. Rxf4 exf4 27. e5 Kh8 {½-½ Kamsky,G (2725)-Stellwagen,D (2612) Corus Wijk aan Zee 2009 (7)}) 22. axb5 {[%emt 0:00:40]} axb5 {[%emt 0:00:02]} 23. Bxb5 {[%emt 0:02:45]} Bxb5 24. Nxb5 {[%emt 0:00:07][%cal Bc3b5,Bb5d6,Bd6c4,Bc4e5][%mdl 32]} d5 {[%emt 0:03:45]} (24... Bf8 $142) 25. fxg6 {[%emt 0:06:19]} (25. exd5 $18 Rxd5 26. Qb3) 25... hxg6 {[%emt 0:00:50]} 26. Qf3 {[%emt 0:00:54]} ({Better is} 26. exd5 $16 {[%cal Of1f7] And now Rxf7! would win.} Rxd5 27. Nc3) 26... Bh4 {[%emt 0:04:37]} 27. g3 {[%emt 0:02:28][%cal Bg2g3,Bg3g4][%mdl 32]} dxe4 {[%emt 0:00:23]} 28. Rxe4 {[%emt 0:00:04]} Bg5 {[%emt 0:02:08] [#] A mistake that costs the game.} (28... Re6 $14) 29. Nd6 $1 $18 {[%emt 0:04:24]} (29. Bxg5 $6 Qxg5 $16) 29... Rf8 $2 {[%emt 0:15:09] Black is weak on the light squares} ({Don't play} 29... Rxd6 30. Qxf7+ Kh8 31. Bxg5) (29... Bxh6 {is tougher.} 30. Nxf7 (30. Nxe8 $2 {loses.} Qxe8 31. Rfe1 Re7 $19) 30... Qc7 31. Nxh6+ Kh7) 30. Bxf8 {[%emt 0:01:15] White is clearly winning.} Qxf8 {[%emt 0:00:02]} 31. Nc4 {[%emt 0:01:08]} Bf6 {[%emt 0:00:51]} 32. g4 {[%emt 0:03:51]} Nf4 {[%emt 0:00:36]} 33. Nxe5 {[%emt 0:00:03] Weighted Error Value: White=0.17 (very precise) /Black=0.73  Loses game:     	---       	Black=1      Mistake:       	White=2     	Black=3      Inaccurate:     	---       	Black=2      OK:         	White=8     	Black=3      Best:        	White=2     	Black=1      Strong:       	White=1     	---} 1-0

[Event "FIDE WSTC Open 50 2025"]
[Site "Prague"]
[Date "2025.02.24"]
[Round "7.11"]
[White "Holemar, David"]
[Black "Temirbayev, Serikbay"]
[Result "1/2-1/2"]
[Annotator "TA"]
[ECO "E77"]
[WhiteElo "2150"]
[BlackElo "2372"]
[PlyCount "44"]
[EventDate "2025.02.17"]
[EventType "team-tourn"]
[EventCountry "CZE"]
[SourceTitle "playchess.com"]
[Source "ChessBase"]
[SourceQuality "1"]
[TimeControl "40/5400+30:1800+30"]

{[%evp 20,25,52,0,42,35,56,39]} 1. d4 {[%emt 0:00:02] Marin,Mihail} Nf6 {[%emt 0:00:17]} 2. c4 {[%emt 0:00:31]} g6 {[%emt 0:00:29]} 3. Nc3 {[%emt 0:00:08]} Bg7 {[%emt 0:00:12]} 4. e4 {[%emt 0:01:56]} d6 {[%emt 0:00:11]} 5. f4 {[%emt 0:00:34]} c5 {[%emt 0:03:29]} 6. d5 {[%emt 0:00:02]} O-O {[%emt 0:00:50]} 7. Nf3 {[%emt 0:00:14]} e6 {[%emt 0:04:10]} 8. Be2 {[%emt 0:00:47]} exd5 {[%emt 0:02:39]} 9. cxd5 {[%emt 0:00:16]} Bg4 {[%emt 0:03:01]} 10. O-O {[%emt 0:01:36]} Nbd7 {[%emt 0:00:56]} 11. a4 {[%emt 0:05:58]} (11. h3 $14 Bxf3 12. Bxf3 (12. Rxf3 Qe7 $11)) 11... a6 {[%emt 0:17:52] A68: Modern Benoni: Four Pawns Attack without 9...Re8.} 12. h3 {[%emt 0:07:25]} Bxf3 {[%emt 0:00:17]} 13. Bxf3 {[%emt 0:00:07] OK:         	---       	Black=1      Best:        	White=1     	---} ({Reject} 13. Rxf3 Qe7 $11) {Predecessor:} 13... Rb8 $146 14. a5 Ne8 15. Qd3 Nc7 16. Bd2 b5 17. axb6 Nxb6 18. Be3 Nd7 19. Rf2 Re8 20. e5 dxe5 21. f5 c4 22. Qxc4 gxf5 {0-1 Adly,A (2631)-Grischuk,A (2746) WchT 8th Ningbo 2011 (5.1)} 1/2-1/2

[Event "FIDE WSTC Open 50 2025"]
[Site "Prague"]
[Date "2025.02.24"]
[Round "7.12"]
[White "Tikzhanov, Yerlan"]
[Black "Skacelik, Petr"]
[Result "1-0"]
[Annotator "TA"]
[ECO "B31"]
[WhiteElo "2323"]
[BlackElo "2132"]
[PlyCount "85"]
[EventDate "2025.02.17"]
[EventType "team-tourn"]
[EventCountry "CZE"]
[SourceTitle "playchess.com"]
[Source "ChessBase"]
[SourceQuality "1"]
[TimeControl "40/5400+30:1800+30"]

{[%evp 11,85,17,25,33,27,31,33,25,43,39,75,41,46,27,43,20,147,150,147,134,147,143,204,197,209,207,225,221,227,202,241,235,247,235,294,297,332,324,337,333,312,325,360,328,400,397,402,386,396,417,393,404,431,432,501,472,471,529,813,806,755,704,663,379,350,347,356,313,1118,16,646,613,29981,29982,29981,29982]} 1. e4 {[%emt 0:00:05]} c5 {[%emt 0:00:05]} 2. Nf3 {[%emt 0:00:08]} Nc6 {[%emt 0:00:10]} 3. Bb5 {[%emt 0:00:14]} g6 {[%emt 0:00:08]} 4. Bxc6 {[%emt 0:00:17]} dxc6 {[%emt 0:00:17]} 5. d3 {[%emt 0:00:18]} Bg7 {[%emt 0:00:24]} 6. O-O {[%emt 0:00:19]} Nf6 {[%emt 0:00:52]} 7. a4 {[%emt 0:00:32] B31: Sicilian: 2...Nc6 3 Bb5 g6.} a5 {[%emt 0:00:10]} 8. Be3 {[%emt 0:02:08]} Nd7 {[%emt 0:03:26]} 9. Qc1 {[%emt 0:00:50] White is slightly better.} h6 {[%emt 0:00:41]} 10. Na3 {[%emt 0:02:03]} e5 {[%emt 0:06:10]} 11. Nc4 {[%emt 0:04:36]} Qc7 $146 {[%emt 0:01:27] Prevents Nd6+} ({Predecessor:} 11... Qe7 12. Re1 Nf8 13. Nb6 Rb8 14. Qd2 Bg4 15. Qxa5 Bxf3 16. gxf3 Ne6 17. Nc4 f5 18. exf5 gxf5 {1-0 Wafa,H (2065)-Stanisz,P (2161) Titled Tuesday intern op 02nd May Late blitz 2023 (6)}) 12. Qd2 {[%emt 0:02:14]} b6 {[%emt 0:00:52]} 13. h3 {[%emt 0:07:25]} Nf8 {[%emt 0:04:34] [#] White now steadily converts the win.} (13... Ba6 $11) 14. b4 $1 $16 {[%emt 0:09:25][%mdl 512]} Ne6 {[%emt 0:09:49]} 15. bxa5 {[%emt 0:05:30]} bxa5 {[%emt 0:02:17]} 16. Rab1 {[%emt 0:02:34] White is much more active.} g5 {[%emt 0:09:40]} (16... Nd4 $16 17. Nh2 Ba6) 17. Nb6 $18 {[%emt 0:04:29] A dynamic duo of knights.} Ra6 {[%emt 0:09:18]} 18. Nxc8 {[%emt 0:03:30]} Qxc8 {[%emt 0:00:01]} 19. Qc3 {[%emt 0:01:00][%csl LRc5,LRe5]} O-O {[%emt 0:00:57]} 20. Bxc5 {[%emt 0:00:45]} (20. Nxe5 Re8 $14) 20... Nxc5 {[%emt 0:01:32]} 21. Qxc5 {[%emt 0:00:15]} Qc7 {[%emt 0:00:21] Black is weak on the light squares} 22. Rb3 {[%emt 0:01:10]} Rb8 {[%emt 0:00:34]} 23. Rfb1 {[%emt 0:00:29]} Rxb3 {[%emt 0:00:07]} 24. Rxb3 {[%emt 0:00:08]} Bf6 {[%emt 0:06:10]} 25. g3 {[%emt 0:05:47]} Kg7 {[%emt 0:00:18]} 26. Kg2 {[%emt 0:00:12]} h5 {[%emt 0:10:45][%cal Bh6h5,Bh5g4][%mdl 32]} 27. c3 {[%emt 0:01:11]} g4 {[%emt 0:01:18]} 28. hxg4 {[%emt 0:02:37]} hxg4 {[%emt 0:00:05]} 29. Nh2 {[%emt 0:01:18]} Qc8 {[%emt 0:03:45]} 30. Qc4 {[%emt 0:01:24]} Ra7 {[%emt 0:03:05]} 31. Rb6 {[%emt 0:03:43][%cal Bb3b6,Bb6a6,Ba6a5][%mdl 32]} Rc7 {[%emt 0:02:04]} 32. Ra6 {[%emt 0:01:00]} Kg6 {[%emt 0:00:31]} 33. Rxa5 {[%emt 0:00:52]} c5 {[%emt 0:01:11]} 34. Ra6 {[%emt 0:00:54]} Kg5 {[%emt 0:00:15] [#]} 35. f4+ $1 {[%emt 0:01:31]} gxf3+ {[%emt 0:01:51]} 36. Nxf3+ {[%emt 0:00:14]} Kg6 {[%emt 0:00:07]} 37. Nxe5+ {[%emt 0:00:32]} Kg7 {[%emt 0:00:05]} 38. Nf3 {[%emt 0:00:51]} Rb7 {[%emt 0:00:19] And now ...Rb2+ would win.} 39. Kf2 {[%emt 0:03:55]} Qg4 $2 {[%emt 0:11:51]} (39... Qc7) 40. Qd5 $2 {[%emt 0:17:34]} ({White must play} 40. Rxf6 $18 Kxf6 41. Qa6+ (41. Qxc5 Rb2+ 42. Ke3 Qxg3 $18) 41... Kg7 42. Qxb7) 40... Rd7 {[%emt 0:09:45][%mdl 8192]} (40... Rb2+ $11 41. Ke3 Qxg3) 41. Qc6 {[%emt 0:31:39]} (41. Qxc5 Rxd3 42. Qf5 Qxf5 43. exf5 Rxc3 $16) 41... Bg5 {[%emt 0:33:02]} 42. Nxg5 {[%emt 0:01:08]} Qxg5 {[%emt 0:00:25]} 43. Qxd7 {[%emt 0:00:34] Weighted Error Value: White=0.31/Black=0.76  Loses game:     	---       	Black=1      Missed win:     	White=1     	---        Mistake:       	---       	Black=3      Inaccurate:     	White=1     	Black=3      OK:         	White=15    	Black=8      Best:        	---       	Black=2      Brilliant:      	White=1     	---} 1-0

[Event "FIDE WSTC Open 50 2025"]
[Site "Prague"]
[Date "2025.02.24"]
[Round "7.13"]
[White "Van der Werf, Mark"]
[Black "Hjartarson, Johann"]
[Result "0-1"]
[Annotator "TA"]
[ECO "E49"]
[WhiteElo "2416"]
[BlackElo "2464"]
[PlyCount "80"]
[EventDate "2025.02.17"]
[EventType "team-tourn"]
[EventCountry "CZE"]
[SourceTitle "playchess.com"]
[Source "ChessBase"]
[SourceQuality "1"]
[TimeControl "40/5400+30:1800+30"]

{[%evp 18,80,14,9,15,0,10,0,7,0,12,0,0,0,0,0,0,0,0,0,5,8,24,25,60,70,69,60,103,40,40,43,37,37,35,53,126,109,216,143,185,79,149,105,95,91,100,102,93,81,89,81,131,141,487,78,100,44,45,43,509,0,0,-29994,-29995]} 1. d4 {[%emt 0:00:04]} Nf6 {[%emt 0:00:13]} 2. c4 {[%emt 0:00:06]} e6 {[%emt 0:00:13]} 3. Nc3 {[%emt 0:00:04]} Bb4 {[%emt 0:00:09]} 4. e3 {[%emt 0:00:05]} O-O {[%emt 0:00:19]} 5. Bd3 {[%emt 0:00:05]} d5 {[%emt 0:00:18]} 6. a3 {[%emt 0:00:05]} Bxc3+ {[%emt 0:00:12]} 7. bxc3 {[%emt 0:00:05]} dxc4 {[%emt 0:00:07]} 8. Bxc4 {[%emt 0:00:06]} c5 {[%emt 0:00:08]} 9. Nf3 {[%emt 0:00:13]} Qc7 {[%emt 0:00:11]} 10. Be2 {[%emt 0:00:06]} b6 {[%emt 0:00:31] E53: Nimzo-Indian: Rubinstein: Main Line (4...0-0 5 Nf3 d5 6 Bd3 c5 7 0-0).} 11. Bb2 {[%emt 0:01:22]} Bb7 {[%emt 0:00:29]} 12. c4 {[%emt 0:02:10]} Nbd7 {[%emt 0:00:13][%cal Bb8d7,Bd7f8,Bf8g6,Bg6h4][%mdl 32] The position is equal.} 13. O-O {[%emt 0:00:28]} Rac8 {[%emt 0:00:19]} 14. Rc1 {[%emt 0:00:42]} Rfd8 {[%emt 0:00:29]} 15. h3 {[%emt 0:00:27]} Nf8 {[%emt 0:07:23]} 16. Re1 {[%emt 0:00:37]} Ng6 {[%emt 0:01:17]} 17. a4 {[%emt 0:02:26]} Ne4 $146 {[%emt 0:03:46]} (17... cxd4 18. exd4 Qf4 19. Qb3 Ne4 20. Rc2 Qf5 21. Bf1 Ng5 22. Nxg5 Qxg5 23. Re3 Bc6 {1-0 Salem,A (2690)-Hakobyan,A (2615) Sharjah Masters 5th 2022 (3)}) 18. Nd2 {[%emt 0:02:24]} Nxd2 {[%emt 0:06:36]} 19. Qxd2 {[%emt 0:00:07]} Nh4 {[%emt 0:01:21]} 20. Bf1 {[%emt 0:05:27]} f6 {[%emt 0:20:25][%cal Ob7f3]} 21. Qe2 {[%emt 0:11:05]} Qf7 {[%emt 0:09:48]} 22. Qg4 {[%emt 0:02:45] Prevents Qg6} g5 {[%emt 0:00:39] [#]} 23. d5 {[%emt 0:08:44]} exd5 $14 {[%emt 0:01:48]} 24. cxd5 {[%emt 0:01:40]} Bxd5 {[%emt 0:00:34]} 25. e4 {[%emt 0:03:59]} Be6 {[%emt 0:02:21]} 26. Qg3 {[%emt 0:00:20][%mdl 1024] and f4 would now be decisive White has compensation.} h6 {[%emt 0:09:10] [#]} (26... Ng6 $14) 27. f4 $1 $16 {[%emt 0:15:07]} Kh7 {[%emt 0:10:10]} (27... Rd2 $16 {was called for.} 28. Qc3 Rxb2 29. Qxb2 gxf4) 28. Bc3 {[%emt 0:04:19]} Rf8 {[%emt 0:03:02]} 29. Bd3 {[%emt 0:14:28] A strong pair of Bishops.} (29. f5 $18 {and White stays clearly on top.} Bc4 30. Bxc4 (30. Bxf6 $2 Bxf1 31. Rxf1 Qxf6 $19) 30... Qxc4 31. Bxf6 Qxa4 32. Ra1) 29... Rcd8 {[%emt 0:01:30]} (29... c4 30. Bc2 Qc7) 30. Bc2 {[%emt 0:06:57]} Qc7 {[%emt 0:08:47]} 31. e5+ {[%emt 0:05:30] White has a king side majority} f5 {[%emt 0:00:36]} 32. fxg5 {[%emt 0:01:31]} hxg5 {[%emt 0:00:20] [#]} 33. Rcd1 $1 {[%emt 0:01:55]} (33. Qxg5 $2 Nf3+ 34. gxf3 Rg8 $19) 33... Rxd1 {[%emt 0:07:59]} 34. Rxd1 {[%emt 0:00:09][%cal Oc3d2]} Qe7 {[%emt 0:01:56]} (34... Rg8 $142) 35. Rd6 {[%emt 0:04:02]} Kg7 $2 {[%emt 0:01:56][%mdl 8192]} (35... Ng6 $16 {is a better chance.}) 36. Qd3 $2 {[%emt 0:02:46]} (36. Rxe6 $18 {is the precise move to win.} Qxe6 37. Qxg5+ Ng6 38. g4 fxg4 39. hxg4) 36... Ng6 {[%emt 0:01:20]} 37. g3 {[%emt 0:01:37] Repels Nf4} (37. Bb3 $16 Nf4 (37... Bxb3 $2 {too greedy.} 38. Rd7 $18) 38. Qd2) 37... c4 {[%emt 0:01:33]} 38. Qd4 {[%emt 0:01:54]} Rh8 $2 {[%emt 0:00:22][%mdl 8192]} ({Black should try} 38... Rc8 $14) 39. Kg2 $2 {[%emt 0:02:37]} (39. Rxe6 $18 Qxe6 40. Bxf5 Qxf5 41. e6+ Ne5 (41... Kh6 $2 42. Qg7+ Kh5 43. g4+ Kh4 44. gxf5 $18) 42. Qxe5+ Qxe5 43. Bxe5+ Kf8 44. Bxh8) 39... Qb7+ {[%emt 0:00:23]} 40. Kh2 $2 {[%emt 0:01:00][%mdl 8192] [#]} (40. Be4 $11 fxe4 41. Rxe6 e3+ 42. Kh2 Rxh3+ (42... e2 $2 43. Rd6 $18) 43. Kxh3 Nf4+ 44. gxf4 Qf3+ 45. Kh2 Qf2+ 46. Kh3 Qh4+ 47. Kg2 Qf2+ 48. Kh3) 40... Rxh3+ $3 {[%mdl 512] Weighted Error Value: White=0.70/Black=0.49  Loses game:     	White=1     	Black=2      Missed win:     	White=2     	---        Mistake:       	White=3     	Black=4      Inaccurate:     	White=1     	Black=2      OK:         	White=10    	Black=6      Best:        	White=2     	Black=3      Strong:       	White=2     	---        Brilliant:      	---       	Black=1} 0-1

[Event "FIDE WSTC Open 50 2025"]
[Site "Prague"]
[Date "2025.02.24"]
[Round "7.14"]
[White "Petursson, Margeir"]
[Black "Van Haastert, Edwin"]
[Result "1/2-1/2"]
[Annotator "TA"]
[ECO "A06"]
[WhiteElo "2403"]
[BlackElo "2408"]
[PlyCount "42"]
[EventDate "2025.02.17"]
[EventType "team-tourn"]
[EventCountry "CZE"]
[SourceTitle "playchess.com"]
[Source "ChessBase"]
[SourceQuality "1"]
[TimeControl "40/5400+30:1800+30"]

{[%evp 14,42,-18,-20,-11,-29,4,4,15,0,0,0,12,25,14,17,42,16,12,0,0,-30,38,46,36,0,0,0,0,-41,-21]} 1. Nf3 {[%emt 0:00:06]} d5 {[%emt 0:00:07]} 2. g3 {[%emt 0:00:18]} g6 {[%emt 0:01:31]} 3. Bg2 {[%emt 0:00:29]} Bg7 {[%emt 0:00:07]} 4. c4 {[%emt 0:00:52]} dxc4 {[%emt 0:00:30]} 5. Na3 {[%emt 0:02:35]} e5 {[%emt 0:03:05]} 6. O-O {[%emt 0:02:55]} Nc6 {[%emt 0:00:54]} 7. Nxc4 {[%emt 0:04:39]} Nge7 {[%emt 0:00:15]} 8. d3 {[%emt 0:02:37]} O-O {[%emt 0:00:24] A20: English Opening: 1...e5.} 9. Bd2 {[%emt 0:01:19]} Re8 {[%emt 0:05:13]} 10. b4 {[%emt 0:03:22]} a6 {[%emt 0:00:48] The position is equal.} 11. Rc1 {[%emt 0:02:37]} Rb8 $146 {[%emt 0:03:01]} ({Predecessor:} 11... h6 12. a4 Nf5 13. Re1 Rb8 14. Bc3 Nd6 15. Nxd6 cxd6 16. b5 axb5 17. axb5 Ne7 {½-½ Grandelius,N (2651)-Hansen,S (2552) EU-ch Online 2300+ Final 2020 (4)}) 12. a3 {[%emt 0:08:11]} Nf5 {[%emt 0:20:17]} 13. Ng5 {[%emt 0:09:48][%cal Bf3g5,Bg5e4,Be4c3,Bc3d5][%mdl 32]} Ncd4 {[%emt 0:05:30]} 14. Ne4 {[%emt 0:12:22]} Nd6 {[%emt 0:04:01]} 15. Ncxd6 {[%emt 0:02:08]} cxd6 {[%emt 0:00:08]} 16. Nc3 {[%emt 0:01:46]} Be6 {[%emt 0:05:11]} 17. Nd5 {[%emt 0:02:37]} Rc8 {[%emt 0:03:31]} (17... e4 $1 $11 18. e3 Bxd5 19. exd4 Bxd4) 18. Rxc8 {[%emt 0:01:24]} Qxc8 {[%emt 0:00:10]} 19. e3 {[%emt 0:00:41]} Bg4 $1 {[%emt 0:03:25]} 20. f3 {[%emt 0:05:04]} Be6 {[%emt 0:00:06]} 21. Nc3 {[%emt 0:02:20]} Nb5 {[%emt 0:05:16] Weighted Error Value: White=0.13 (very precise) /Black=0.17 (very precise)   Mistake:       	---       	Black=1      Inaccurate:     	White=4     	Black=1      OK:         	White=4     	Black=3      Strong:       	---       	Black=1} 1/2-1/2